fUSD/lending_fUSD_20240815
["ID","MTS","AMOUNT","RATE_DAILY","PERIOD"]
[335008650,1723741269031,908.2,9.982e-05,2]
[335008651,1723741369797,200.24672948,9.932e-05,2]
[335008655,1723741551547,192.7,9.948e-05,2]
[335008656,1723741583160,1567.44604783,9.922e-05,2]
[335008657,1723741583184,10000.0,9.922e-05,2]
[335008658,1723741583207,10000.0,9.922e-05,2]
[335008659,1723741583230,2332.55395217,9.922e-05,2]
[335008660,1723741623466,516.85,9.936e-05,2]
[335008661,1723741685604,-250.0,9.994e-05,2]
[335008662,1723741685629,-550.0,0.0001,2]
[335008663,1723741685650,-1000.0,0.00010002,2]
[335008664,1723741685674,-332.32,0.00010015,2]
[335008665,1723741685697,-218.91005949,0.00010097,2]
[335008666,1723741685720,-180.74,0.00010265,2]
[335008667,1723741685747,-546.87070022,0.00010505,2]
[335008668,1723741685768,-376.19852536,0.00010768,2]
[335008669,1723741685788,-150.0,0.00010799,2]
[335008670,1723741685809,-300.0,0.00010799,2]
[335008671,1723741685830,-11094.96071493,0.000108,2]
[335008672,1723741693345,734.12,8.278e-05,2]
[335008711,1723741801195,2997.59279999,0.00025,60]
[335008738,1723741832894,-683.26256191,0.00010026,2]
[335008739,1723741832955,-265.86732708,0.00010026,2]
[335008740,1723741832965,-282.29588876,0.00010026,2]
[335008741,1723741833015,-265.41216191,0.00010026,2]
[335008742,1723741833025,-438.7702881,0.00010034,2]
[335008743,1723741833034,-173.85,0.00010096,2]
[335008744,1723741833044,-200.0,0.00010126,2]
[335008745,1723741833054,-734.12,0.00010542,2]
[335008746,1723741833063,-150.0,0.00010799,2]
[335008747,1723741833073,-74.81671467,0.00010799,2]
[335008748,1723741833086,-225.18328533,0.00010799,2]
[335008749,1723741833095,-300.0,0.00010799,2]
[335008750,1723741833104,-159.87096202,0.000108,2]
[335008751,1723741833135,-1578.72205212,0.000108,2]
[335008752,1723741833144,-25627.641,0.000108,2]
[335008753,1723741833154,-4341.0005,0.000108,2]
[335008754,1723741833163,-352.6593,0.000108,2]
[335008755,1723741833173,-162.76853278,0.000108,2]
[335008756,1723741833182,-760.3907085,0.00010861,2]
[335008757,1723741833191,-164.33391915,0.00010888,2]
[335008758,1723741833201,-2107.13055,0.0001089,2]
[335008759,1723741833211,-309.38389104,0.0001089,2]
[335008760,1723741833220,-150.0,0.00010898,2]
[335008761,1723741833230,-970.9746,0.000109,2]
[335008762,1723741833240,-21852.7989,0.000109,2]
[335008764,1723741833249,-152.79080492,0.000109,2]
[335008766,1723741833261,-2500.0,0.000109,2]
[335008767,1723741833269,-376.09503935,0.000109,2]
[335008769,1723741833278,-155.0,0.00010949,2]
[335008771,1723741833288,-536.3843632,0.00010949,2]
[335008773,1723741833297,-2000.0,0.00010959,2]
[335008775,1723741833307,-150.0,0.00010959,2]
[335008777,1723741833316,-250.0,0.00010959,2]
[335008779,1723741833325,-2386.8149171,0.00010989,2]
[335008781,1723741833335,-197.4477267,0.0001099,2]
[335008783,1723741833347,-5609.5598962,0.00010997,2]
[335008785,1723741833357,-94554.8299029,0.00010997,2]
[335008786,1723741833367,-500.0,0.00010999,2]
[335008787,1723741833376,-500.0,0.00010999,2]
[335008788,1723741833385,-500.0,0.00010999,2]
[335008789,1723741833395,-500.0,0.00010999,2]
[335008790,1723741833404,-500.0,0.00010999,2]
[335008791,1723741833413,-335.27889664,0.00010999,2]
[335008792,1723741833423,-742.0,0.00011,2]
[335008793,1723741833432,-373074.4625697,0.00011,2]
[335008799,1723741838341,-1163.46633744,0.00010997,2]
[335008800,1723741838351,-8267.12348649,0.00011,2]
[335008801,1723741838624,-25907.60000001,0.00011,2]
[335008802,1723741838636,-1279.7631426,0.00011,2]
[335008803,1723741838647,-1326.42484405,0.00011,2]
[335008809,1723741840424,-312.76187596,0.00011,2]
[335008810,1723741840504,-350575.00330942,0.00011,2]
[335008811,1723741840515,-803654.96365248,0.00011,2]
[335008812,1723741840525,-181.88317935,0.00011,2]
[335008813,1723741840534,-170.54579841,0.00011,2]
[335008814,1723741840543,-250.0,0.00011,2]
[335008815,1723741840553,-1525.91056797,0.00011,2]
[335008816,1723741840563,-2000.0,0.00011,2]
[335008817,1723741840573,-200.0,0.00011,2]
[335008818,1723741840583,-200.0,0.00011,2]
[335008819,1723741840592,-360.0,0.00011,2]
[335008820,1723741840602,-1000.0,0.00011,2]
[335008821,1723741840612,-501.997,0.00011,2]
[335008822,1723741840621,-226.0,0.00011,2]
[335008823,1723741840631,-453.8371,0.00011,2]
[335008824,1723741840640,-954.9,0.00011,2]
[335008825,1723741840650,-5349.9751172,0.00011005,2]
[335008826,1723741840660,-150.30944536,0.00011013,2]
[335008828,1723741840669,-3707.51278782,0.00011013,2]
[335008830,1723741840679,-732.6454915,0.00011014,2]
[335008832,1723741840688,-214.35777161,0.00011014,2]
[335008834,1723741840697,-150.0,0.00011014,2]
[335008835,1723741840707,-150.0,0.00011014,2]
[335008836,1723741840716,-229.32417258,0.00011014,2]
[335008837,1723741840726,-150.0,0.00011014,2]
[335008838,1723741840735,-150.0,0.00011014,2]
[335008839,1723741840745,-150.0,0.00011014,2]
[335008840,1723741840754,-150.0,0.00011014,2]
[335008841,1723741840765,-150.0,0.00011014,2]
[335008842,1723741840775,-150.0,0.00011014,2]
[335008843,1723741840788,-150.0,0.00011014,2]
[335008844,1723741840798,-10423.240765,0.00011051,2]
[335008845,1723741840807,-29304.0,0.00011066,2]
[335008846,1723741840817,-1987.55353182,0.0001111,2]
[335008847,1723741840827,-200.0,0.0001111,2]
[335008849,1723741840837,-200.0,0.0001111,2]
[335008850,1723741840846,-192.7,0.00011191,2]
[335008852,1723741840859,-200.0,0.00011221,2]
[335008853,1723741840869,-200.0,0.00011221,2]
[335008855,1723741840878,-1000.0,0.00011253,2]
[335008857,1723741840888,-732.6454915,0.00011318,2]
[335008859,1723741840898,-214.35777161,0.00011318,2]
[335008861,1723741840907,-229.32417258,0.00011318,2]
[335008863,1723741840916,-200.0,0.00011333,2]
[335008865,1723741840925,-200.0,0.00011333,2]
[335008866,1723741840935,-382.68598812,0.00011405,2]
[335008867,1723741840945,-2107.13055,0.0001144,2]
[335008868,1723741840954,-200.0,0.00011447,2]
[335008869,1723741840963,-414.8999536,0.00011493,2]
[335008870,1723741840972,-156.76,0.00011531,2]
[335008871,1723741840982,-424.64,0.00011589,2]
[335008872,1723741840991,-421.13,0.00011589,2]
[335008873,1723741841000,-834.77,0.00011589,2]
[335008874,1723741841011,-421.13,0.00011589,2]
[335008875,1723741841020,-150.0,0.00011604,2]
[335008876,1723741841030,-732.6454915,0.00011622,2]
[335008877,1723741841039,-214.35777161,0.00011622,2]
[335008878,1723741841048,-229.32417258,0.00011622,2]
[335008879,1723741841057,-420.0,0.00011869,2]
[335008880,1723741841067,-420.0,0.00011879,2]
[335008881,1723741841076,-732.6454915,0.00011926,2]
[335008882,1723741841085,-214.35777161,0.00011926,2]
[335008884,1723741841095,-229.32417258,0.00011926,2]
[335008885,1723741841104,-5000.0,0.00012,2]
[335008886,1723741841113,-421.4,0.00012,2]
[335008887,1723741841122,-421.4,0.00012,2]
[335008888,1723741841132,-421.4,0.00012,2]
[335008889,1723741841141,-600.0,0.00012,2]
[335008890,1723741841151,-1339.91,0.00012,2]
[335008891,1723741841160,-1339.91,0.00012,2]
[335008892,1723741841169,-1339.91,0.00012,2]
[335008893,1723741841178,-1339.91,0.00012,2]
[335008894,1723741841187,-1339.91,0.00012,2]
[335008895,1723741841197,-1339.91,0.00012,2]
[335008896,1723741841206,-1339.91,0.00012,2]
[335008897,1723741841215,-1339.91,0.00012,2]
[335008898,1723741841226,-1339.91,0.00012,2]
[335008899,1723741841235,-1339.91,0.00012,2]
[335008900,1723741841244,-1339.91,0.00012,2]
[335008901,1723741841253,-1339.91,0.00012,2]
[335008902,1723741841262,-1339.91,0.00012,2]
[335008903,1723741841271,-1339.91,0.00012,2]
[335008904,1723741841280,-1339.91,0.00012,2]
[335008905,1723741841290,-1339.91,0.00012,2]
[335008906,1723741841299,-1339.91,0.00012,2]
[335008907,1723741841308,-1339.91,0.00012,2]
[335008908,1723741841317,-1339.91,0.00012,2]
[335008909,1723741841326,-1339.91,0.00012,2]
[335008910,1723741841335,-1339.91,0.00012,2]
[335008911,1723741841344,-1339.91,0.00012,2]
[335008912,1723741841353,-1339.91,0.00012,2]
[335008913,1723741841363,-1339.91,0.00012,2]
[335008914,1723741841372,-1339.91,0.00012,2]
[335008915,1723741841381,-1339.91,0.00012,2]
[335008916,1723741841390,-1339.91,0.00012,2]
[335008917,1723741841400,-1339.91,0.00012,2]
[335008918,1723741841409,-1339.91,0.00012,2]
[335008919,1723741841418,-1339.91,0.00012,2]
[335008920,1723741841428,-1339.91,0.00012,2]
[335008921,1723741841437,-1339.91,0.00012,2]
[335008922,1723741841447,-1339.91,0.00012,2]
[335008923,1723741841456,-1009.89,0.00012,2]
[335008924,1723741841466,-1009.89,0.00012,2]
[335008925,1723741841475,-1009.89,0.00012,2]
[335008926,1723741841484,-1009.89,0.00012,2]
[335008927,1723741841493,-1009.89,0.00012,2]
[335008928,1723741841502,-1009.89,0.00012,2]
[335008929,1723741841511,-1009.89,0.00012,2]
[335008930,1723741841521,-1009.89,0.00012,2]
[335008931,1723741841529,-1009.89,0.00012,2]
[335008932,1723741841539,-1009.89,0.00012,2]
[335008933,1723741841548,-1009.89,0.00012,2]
[335008934,1723741841557,-1009.89,0.00012,2]
[335008935,1723741841566,-1009.89,0.00012,2]
[335008936,1723741841576,-1009.89,0.00012,2]
[335008937,1723741841585,-1009.89,0.00012,2]
[335008938,1723741841594,-1009.89,0.00012,2]
[335008939,1723741841603,-1009.89,0.00012,2]
[335008940,1723741841612,-1009.89,0.00012,2]
[335008941,1723741841621,-1009.89,0.00012,2]
[335008942,1723741841630,-1009.89,0.00012,2]
[335008943,1723741841639,-1009.89,0.00012,2]
[335008944,1723741841648,-1009.89,0.00012,2]
[335008945,1723741841657,-1009.89,0.00012,2]
[335008946,1723741841666,-1009.89,0.00012,2]
[335008947,1723741841675,-1009.89,0.00012,2]
[335008948,1723741841685,-1009.89,0.00012,2]
[335008949,1723741841695,-1009.89,0.00012,2]
[335008950,1723741841704,-1009.89,0.00012,2]
[335008951,1723741841713,-1009.89,0.00012,2]
[335008952,1723741841722,-1009.89,0.00012,2]
[335008953,1723741841731,-354.06,0.00012033,2]
[335008954,1723741841741,-44427.23,0.00012055,2]
[335008955,1723741841750,-2107.13055,0.0001206,2]
[335008956,1723741841759,-150.0,0.00012194,2]
[335008957,1723741841769,-732.6454915,0.00012229,2]
[335008958,1723741841781,-214.35777161,0.00012229,2]
[335008959,1723741841791,-229.32417258,0.00012229,2]
[335008960,1723741841800,-871.092,0.0001224,2]
[335008961,1723741841810,-150.0,0.0001224,2]
[335008962,1723741841819,-552.322,0.0001224,2]
[335008963,1723741841829,-207.266,0.0001224,2]
[335008964,1723741841839,-2031.463,0.0001224,2]
[335008965,1723741841848,-272.285,0.0001224,2]
[335008966,1723741841859,-3292.0,0.0001224,2]
[335008967,1723741841868,-1178.0,0.0001224,2]
[335008968,1723741841877,-254.604,0.0001224,2]
[335008969,1723741841886,-642.636,0.0001224,2]
[335008970,1723741841895,-387.82211248,0.00012319,2]
[335008971,1723741841905,-289.0,0.00012321,2]
[335008972,1723741841915,-21763.0,0.00012321,2]
[335008973,1723741841925,-5135.0,0.00012321,2]
[335008974,1723741841934,-1673.0,0.00012321,2]
[335008975,1723741841943,-5843.0,0.00012321,2]
[335008976,1723741841953,-1289.016,0.00012321,2]
[335008977,1723741842091,-192.7,0.00012435,2]
[335008978,1723741842101,-354.06,0.00012458,2]
[335008979,1723741842111,-1000.0,0.00012503,2]
[335008980,1723741842120,-611.67890912,0.0001251,2]
[335008981,1723741842130,-732.6454915,0.00012533,2]
[335008982,1723741842139,-214.35777161,0.00012533,2]
[335008983,1723741842148,-229.32417258,0.00012533,2]
[335008984,1723741842157,-2107.13055,0.0001268,2]
[335008985,1723741842167,-150.0,0.00012784,2]
[335008986,1723741842176,-150.0,0.00012784,2]
[335008987,1723741842185,-734.12,0.00012806,2]
[335008988,1723741842195,-732.6454915,0.00012837,2]
[335008989,1723741842205,-214.35777161,0.00012837,2]
[335008990,1723741842216,-229.32417258,0.00012837,2]
[335008991,1723741842225,-354.06,0.00012884,2]
[335008992,1723741842234,-179.99,0.00012893,2]
[335008993,1723741842243,-524.99967728,0.00012938,2]
[335008994,1723741842253,-587.0,0.00013046,2]
[335008995,1723741842262,-348.22217889,0.00013052,2]
[335008996,1723741842271,-587.0,0.00013067,2]
[335008997,1723741842281,-270.58164358,0.00013086,2]
[335008998,1723741842291,-522.16077607,0.00013086,2]
[335008999,1723741842300,-732.6454915,0.00013141,2]
[335009000,1723741842313,-214.35777161,0.00013141,2]
[335009001,1723741842322,-229.32417258,0.00013141,2]
[335009002,1723741842332,-156.76,0.00013179,2]
[335009003,1723741842343,-354.06,0.0001331,2]
[335009004,1723741842354,-2107.13055,0.0001331,2]
[335009005,1723741842364,-34075.0,0.00013315,2]
[335009006,1723741842373,-150.0,0.00013328,2]
[335009007,1723741842382,-150.0,0.00013373,2]
[335009008,1723741842392,-732.6454915,0.00013445,2]
[335009009,1723741842400,-214.35777161,0.00013445,2]
[335009010,1723741842410,-229.32417258,0.00013445,2]
[335009011,1723741842419,-2500.0,0.00013499,2]
[335009012,1723741842428,-2500.0,0.00013499,2]
[335009013,1723741842437,-10000.0,0.00013643,2]
[335009014,1723741842446,-200.0,0.00013673,2]
[335009015,1723741842456,-192.7,0.00013678,2]
[335009016,1723741842466,-151.0,0.00013681,2]
[335009017,1723741842478,-151.0,0.00013681,2]
[335009018,1723741842487,-151.0,0.00013681,2]
[335009019,1723741842497,-151.0,0.00013681,2]
[335009020,1723741842507,-151.0,0.00013681,2]
[335009021,1723741842523,-151.0,0.00013681,2]
[335009022,1723741842533,-151.0,0.00013681,2]
[335009023,1723741842542,-151.0,0.00013681,2]
[335009024,1723741842551,-151.0,0.00013681,2]
[335009025,1723741842560,-151.0,0.00013681,2]
[335009026,1723741842569,-151.0,0.00013681,2]
[335009027,1723741842579,-254.515709,0.00013681,2]
[335009028,1723741842587,-254.515709,0.00013681,2]
[335009029,1723741842597,-151.0,0.00013681,2]
[335009030,1723741842607,-151.0,0.00013681,2]
[335009031,1723741842618,-151.0,0.00013681,2]
[335009032,1723741842628,-151.0,0.00013681,2]
[335009033,1723741842639,-151.0,0.00013681,2]
[335009034,1723741842649,-151.0,0.00013681,2]
[335009035,1723741842659,-151.0,0.00013681,2]
[335009036,1723741842671,-151.0,0.00013681,2]
[335009037,1723741842681,-151.0,0.00013681,2]
[335009038,1723741842692,-151.0,0.00013681,2]
[335009039,1723741842701,-153.67036,0.00013681,2]
[335009040,1723741842711,-153.67036,0.00013681,2]
[335009041,1723741842720,-151.0,0.00013681,2]
[335009042,1723741842730,-151.0,0.00013681,2]
[335009043,1723741842739,-159.681171,0.00013681,2]
[335009044,1723741842749,-151.0,0.00013681,2]
[335009045,1723741842759,-159.681171,0.00013681,2]
[335009046,1723741842769,-200.697336,0.00013681,2]
[335009047,1723741842783,-246.564929,0.00013681,2]
[335009048,1723741842793,-283.382914,0.00013681,2]
[335009049,1723741842802,-283.382914,0.00013681,2]
[335009050,1723741842812,-151.465044,0.00013681,2]
[335009051,1723741842822,-151.0,0.00013681,2]
[335009052,1723741842831,-151.0,0.00013681,2]
[335009053,1723741842840,-151.0,0.00013681,2]
[335009054,1723741842850,-274.314366,0.00013681,2]
[335009055,1723741842863,-274.314366,0.00013681,2]
[335009056,1723741842874,-151.0,0.00013681,2]
[335009057,1723741842883,-151.0,0.00013681,2]
[335009058,1723741842893,-151.0,0.00013681,2]
[335009059,1723741842904,-151.0,0.00013681,2]
[335009061,1723741842914,-293.256752,0.00013681,2]
[335009063,1723741842924,-151.0,0.00013681,2]
[335009066,1723741842933,-151.0,0.00013681,2]
[335009069,1723741842943,-151.0,0.00013681,2]
[335009072,1723741842953,-151.0,0.00013681,2]
[335009075,1723741842969,-151.0,0.00013681,2]
[335009078,1723741842989,-151.0,0.00013681,2]
[335009079,1723741843003,-151.0,0.00013681,2]
[335009080,1723741843022,-151.0,0.00013681,2]
[335009081,1723741843039,-151.0,0.00013681,2]
[335009082,1723741843059,-151.0,0.00013681,2]
[335009083,1723741843075,-151.0,0.00013681,2]
[335009084,1723741843093,-151.0,0.00013681,2]
[335009085,1723741843107,-151.0,0.00013681,2]
[335009086,1723741843121,-250.0,0.00013681,2]
[335009087,1723741843138,-266.571,0.00013681,2]
[335009088,1723741843156,-216.0,0.00013681,2]
[335009089,1723741843172,-216.0,0.00013681,2]
[335009090,1723741843184,-209.076,0.00013681,2]
[335009091,1723741843200,-150.07,0.00013681,2]
[335009092,1723741843214,-163.0,0.00013681,2]
[335009093,1723741843229,-150.0,0.00013681,2]
[335009094,1723741843245,-200.0,0.00013681,2]
[335009095,1723741843259,-163.838,0.00013681,2]
[335009096,1723741843274,-155.518,0.00013681,2]
[335009097,1723741843288,-150.166,0.00013681,2]
[335009098,1723741843303,-250.0,0.00013681,2]
[335009099,1723741843320,-260.827,0.00013681,2]
[335009100,1723741843334,-200.853,0.00013681,2]
[335009101,1723741843348,-169.969,0.00013681,2]
[335009102,1723741843362,-1543.0,0.00013681,2]
[335009104,1723741843376,-1385.979,0.00013681,2]
[335009105,1723741843389,-1924.0,0.00013681,2]
[335009106,1723741843403,-622.0,0.00013681,2]
[335009107,1723741843417,-1137.0,0.00013681,2]
[335009108,1723741843433,-556.0,0.00013681,2]
[335009109,1723741843448,-446.978,0.00013681,2]
[335009112,1723741843462,-2334.84,0.00013699,2]
[335009115,1723741843477,-200.0,0.00013699,2]
[335009117,1723741843491,-3636.85,0.00013699,2]
[335009118,1723741843506,-500.0,0.00013699,2]
[335009119,1723741843520,-180.16,0.00013699,2]
[335009120,1723741843534,-2751.0,0.00013699,2]
[335009121,1723741843548,-300.0,0.00013699,2]
[335009122,1723741843561,-300.0,0.00013699,2]
[335009123,1723741843576,-300.0,0.00013699,2]
[335009124,1723741843590,-300.0,0.00013699,2]
[335009125,1723741843603,-300.0,0.00013699,2]
[335009126,1723741843617,-300.0,0.00013699,2]
[335009127,1723741843631,-151.0,0.00013699,2]
[335009128,1723741843646,-151.0,0.00013699,2]
[335009129,1723741843660,-151.0,0.00013699,2]
[335009130,1723741843675,-151.0,0.00013699,2]
[335009131,1723741843689,-151.0,0.00013699,2]
[335009132,1723741843704,-151.0,0.000137,2]
[335009133,1723741843719,-223.64168,0.000137,2]
[335009134,1723741843734,-223.64168,0.000137,2]
[335009135,1723741843748,-2067.738,0.000137,2]
[335009136,1723741843762,-151.0,0.000137,2]
[335009137,1723741843778,-371.973604,0.000137,2]
[335009138,1723741843794,-151.0,0.000137,2]
[335009139,1723741843808,-371.973604,0.000137,2]
[335009140,1723741843822,-151.0,0.000137,2]
[335009141,1723741843837,-402.271275,0.000137,2]
[335009142,1723741843851,-151.0,0.000137,2]
[335009143,1723741843866,-402.271275,0.000137,2]
[335009144,1723741843880,-151.0,0.000137,2]
[335009145,1723741843894,-256.37459,0.000137,2]
[335009146,1723741843908,-151.0,0.000137,2]
[335009147,1723741843922,-256.37459,0.000137,2]
[335009148,1723741843936,-516.717667,0.000137,2]
[335009149,1723741843951,-151.0,0.000137,2]
[335009150,1723741843966,-151.0,0.000137,2]
[335009151,1723741843980,-516.717667,0.000137,2]
[335009152,1723741843995,-151.0,0.000137,2]
[335009153,1723741844009,-151.0,0.000137,2]
[335009154,1723741844026,-151.0,0.000137,2]
[335009155,1723741844040,-151.0,0.000137,2]
[335009156,1723741844054,-151.0,0.000137,2]
[335009157,1723741844067,-195.35607,0.000137,2]
[335009158,1723741844081,-151.0,0.000137,2]
[335009159,1723741844094,-151.0,0.000137,2]
[335009160,1723741844108,-388.767853,0.000137,2]
[335009161,1723741844122,-388.767853,0.000137,2]
[335009162,1723741844135,-151.0,0.000137,2]
[335009163,1723741844149,-151.0,0.000137,2]
[335009164,1723741844164,-151.0,0.000137,2]
[335009165,1723741844178,-289.485609,0.000137,2]
[335009166,1723741844188,-151.0,0.000137,2]
[335009167,1723741844197,-289.485609,0.000137,2]
[335009168,1723741844207,-420.0,0.000137,2]
[335009169,1723741844216,-151.0,0.000137,2]
[335009170,1723741844225,-151.0,0.000137,2]
[335009171,1723741844234,-4693.98,0.000137,2]
[335009172,1723741844244,-4693.98,0.000137,2]
[335009173,1723741844253,-4693.98,0.000137,2]
[335009174,1723741844262,-4693.98,0.000137,2]
[335009175,1723741844510,-4693.98,0.000137,2]
[335009176,1723741844540,-365.795618,0.000137,2]
[335009177,1723741844555,-575.602219,0.000137,2]
[335009178,1723741844565,-354.06,0.00013735,2]
[335009179,1723741844574,-732.6454915,0.00013749,2]
[335009180,1723741844584,-214.35777161,0.00013749,2]
[335009181,1723741844594,-229.32417258,0.00013749,2]
[335009182,1723741844604,-887.10573254,0.00013751,2]
[335009183,1723741844613,-2148.95594776,0.00013751,2]
[335009184,1723741844623,-211.55324508,0.00013751,2]
[335009185,1723741844632,-1000.0,0.00013753,2]
[335009186,1723741844642,-200.0,0.00013773,2]
[335009187,1723741844651,-179.33307019,0.00013773,2]
[335009188,1723741844660,-300.0,0.00013799,2]
[335009189,1723741844670,-300.0,0.00013799,2]
[335009190,1723741844679,-300.0,0.00013799,2]
[335009191,1723741844688,-300.0,0.00013799,2]
[335009192,1723741844699,-300.0,0.00013799,2]
[335009193,1723741844709,-301.82169572,0.00013799,2]
[335009194,1723741844719,-151.0,0.000138,2]
[335009195,1723741844730,-151.0,0.000138,2]
[335009196,1723741844740,-151.0,0.000138,2]
[335009197,1723741844750,-151.0,0.000138,2]
[335009198,1723741844760,-151.312028,0.000138,2]
[335009199,1723741844770,-151.0,0.000138,2]
[335009200,1723741844785,-151.0,0.000138,2]
[335009201,1723741844794,-151.212212,0.000138,2]
[335009202,1723741844803,-151.0,0.000138,2]
[335009203,1723741844812,-151.0,0.000138,2]
[335009204,1723741844822,-151.0,0.000138,2]
[335009205,1723741844832,-242.159582,0.000138,2]
[335009206,1723741844841,-151.0,0.000138,2]
[335009207,1723741844850,-151.0,0.000138,2]
[335009208,1723741844861,-151.0,0.000138,2]
[335009209,1723741844871,-151.0,0.000138,2]
[335009210,1723741844881,-254.515709,0.000138,2]
[335009211,1723741844892,-254.515709,0.000138,2]
[335009212,1723741844901,-151.0,0.000138,2]
[335009213,1723741844911,-151.0,0.000138,2]
[335009214,1723741844923,-151.0,0.000138,2]
[335009215,1723741844933,-151.0,0.000138,2]
[335009216,1723741844942,-151.0,0.000138,2]
[335009217,1723741844951,-151.0,0.000138,2]
[335009218,1723741844961,-151.0,0.000138,2]
[335009219,1723741844970,-151.0,0.000138,2]
[335009220,1723741844979,-151.0,0.000138,2]
[335009221,1723741844988,-151.0,0.000138,2]
[335009222,1723741844997,-151.0,0.000138,2]
[335009223,1723741845007,-151.0,0.000138,2]
[335009224,1723741845019,-151.0,0.000138,2]
[335009225,1723741845028,-153.67036,0.000138,2]
[335009226,1723741845038,-153.67036,0.000138,2]
[335009227,1723741845047,-151.0,0.000138,2]
[335009228,1723741845056,-151.0,0.000138,2]
[335009229,1723741845066,-159.681171,0.000138,2]
[335009230,1723741845075,-151.0,0.000138,2]
[335009231,1723741845085,-159.681171,0.000138,2]
[335009232,1723741845094,-151.0,0.000138,2]
[335009233,1723741845103,-151.0,0.000138,2]
[335009234,1723741845113,-151.0,0.000138,2]
[335009235,1723741845122,-151.0,0.000138,2]
[335009236,1723741845132,-151.0,0.000138,2]
[335009237,1723741845141,-151.0,0.000138,2]
[335009238,1723741845150,-151.0,0.000138,2]
[335009239,1723741845159,-151.0,0.000138,2]
[335009240,1723741845169,-151.0,0.000138,2]
[335009241,1723741845178,-151.0,0.000138,2]
[335009242,1723741845187,-151.0,0.000138,2]
[335009243,1723741845196,-153.87923,0.000138,2]
[335009244,1723741845205,-151.0,0.000138,2]
[335009245,1723741845214,-151.0,0.000138,2]
[335009246,1723741845224,-151.0,0.000138,2]
[335009247,1723741845233,-151.0,0.000138,2]
[335009248,1723741845243,-151.0,0.000138,2]
[335009249,1723741845251,-151.0,0.000138,2]
[335009250,1723741845261,-151.0,0.000138,2]
[335009251,1723741845272,-151.0,0.000138,2]
[335009252,1723741845281,-151.0,0.000138,2]
[335009253,1723741845291,-151.0,0.000138,2]
[335009254,1723741845301,-283.382914,0.000138,2]
[335009255,1723741845311,-301.740851,0.000138,2]
[335009256,1723741845320,-283.382914,0.000138,2]
[335009257,1723741845329,-301.740851,0.000138,2]
[335009258,1723741845339,-151.0,0.000138,2]
[335009259,1723741845348,-151.0,0.000138,2]
[335009260,1723741845358,-151.0,0.000138,2]
[335009261,1723741845367,-151.0,0.000138,2]
[335009262,1723741845377,-151.0,0.000138,2]
[335009263,1723741845386,-151.0,0.000138,2]
[335009264,1723741845395,-151.0,0.000138,2]
[335009265,1723741845404,-151.0,0.000138,2]
[335009266,1723741845414,-151.0,0.000138,2]
[335009267,1723741845424,-151.0,0.000138,2]
[335009268,1723741845433,-151.082831,0.000138,2]